[Event "29th CRO-chT Junior 2020"]
[Site "Cakovec"]
[Date "2020.07.14"]
[Round "1.4"]
[White "Bedic, Noemi"]
[Black "Novosel, Lovro"]
[Result "0-1"]
[ECO "B34"]
[WhiteElo "1712"]
[BlackElo "1699"]
[Annotator "NA RC"]
[PlyCount "66"]
[EventDate "2020.07.14"]
[EventType "team-tourn"]
[EventCountry "CRO"]
[SourceTitle "playchess.com"]
[Source "ChessBase"]
[SourceQuality "1"]
[TimeControl "5400+30"]

1. e4 {[%emt 0:00:30]} g6 {[%emt 0:00:30]} 2. d4 {[%emt 0:00:30]} Bg7 {[%emt 0:00:30]} 3. Nc3 {[%emt 0:00:30]} c5 {[%emt 0:01:30]} 4. Nf3 {[%emt 0:02:30]} cxd4 {[%emt 0:01:30]} 5. Nxd4 {[%emt 0:00:30]} Nc6 {[%emt 0:00:00]} 6. Be3 {[%emt 0:00:30]} Nf6 {[%emt 0:03:00]} 7. f3 {[%emt 0:03:30]} d5 {[%emt 0:02:30]} 8. Bb5 {[%emt 0:05:30]} Bd7 {[%emt 0:03:30]} 9. exd5 {[%emt 0:08:30]} Nxd4 {[%emt 0:00:30]} 10. Bxd4 {[%emt 0:02:30]} Bxb5 {[%emt 0:03:30]} 11. Nxb5 {[%emt 0:00:30]} O-O {[%emt 0:00:30]} 12. c4 {[%emt 0:02:30]} a6 {[%emt 0:03:30]} 13. Nc3 {[%emt 0:01:30]} b5 {[%emt 0:00:30]} 14. cxb5 {[%emt 0:11:30]} axb5 {[%emt 0:00:30]} 15. Nxb5 {[%emt 0:02:30]} Qxd5 {[%emt 0:00:30]} 16. Nc3 {[%emt 0:03:30]} Qc4 {[%emt 0:02:30]} 17. b3 {[%emt 0:04:30]} Qc7 {[%emt 0:01:30]} 18. Ne2 {[%emt 0:13:30]} Rfd8 {[%emt 0:00:30]} 19. Qb1 {[%emt 0:01:30]} Rxd4 {[%emt 0:02:30]} 20. Nxd4 {[%emt 0:01:30]} Qc3+ {[%emt 0:01:30]} 21. Ke2 {[%emt 0:00:30]} Qxd4 {[%emt 0:00:00]} 22. Rd1 {[%emt 0:03:30]} Qe5+ {[%emt 0:00:00]} 23. Kf1 {[%emt 0:01:30]} Nd5 {[%emt 0:01:30]} 24. Rc1 {[%emt 0:06:30]} Ne3+ {[%emt 0:01:30]} 25. Kg1 {[%emt 0:01:30]} Qd4 {[%emt 0:00:30]} 26. Kh1 {[%emt 0:00:30]} Qd2 {[%emt 0:00:00]} 27. Rg1 {[%emt 0:00:30]} Bxa1 {[%emt 0:03:00]} 28. Qxa1 {[%emt 0:00:00]} Qxa2 {[%emt 0:00:00]} 29. Qc3 {[%emt 0:02:31]} Nd5 {[%emt 0:00:00]} 30. Qc6 {[%emt 0:00:32]} e6 {[%emt 0:00:00]} 31. Rc1 {[%emt 0:00:40]} Rb8 {[%emt 0:00:00]} 32. Qd7 {[%emt 0:02:04]} Qxb3 {[%emt 0:00:30]} 33. f4 {[%emt 0:00:48]} Qe3 {[%emt 0:01:30]} 0-1

[Event "29th CRO-chT Junior 2020"]
[Site "Cakovec"]
[Date "2020.07.14"]
[Round "1.7"]
[White "Baric, Marko"]
[Black "Troselj, Ivan"]
[Result "0-1"]
[ECO "B12"]
[WhiteElo "1831"]
[BlackElo "1857"]
[Annotator "NA RC"]
[PlyCount "52"]
[EventDate "2020.07.14"]
[EventType "team-tourn"]
[EventCountry "CRO"]
[SourceTitle "playchess.com"]
[Source "ChessBase"]
[SourceQuality "1"]
[TimeControl "5400+30"]

1. e4 {[%emt 0:00:30]} c6 {[%emt 0:00:30]} 2. d4 {[%emt 0:00:00]} d5 {[%emt 0:00:00]} 3. e5 {[%emt 0:00:00]} c5 {[%emt 0:00:00]} 4. dxc5 {[%emt 0:00:30]} Nc6 {[%emt 0:00:30]} 5. Nf3 {[%emt 0:00:30]} Bg4 {[%emt 0:02:30]} 6. c3 {[%emt 0:01:30]} e6 {[%emt 0:01:30]} 7. Be3 {[%emt 0:07:30]} Bxf3 {[%emt 0:04:30]} 8. Qxf3 {[%emt 0:08:30]} Nxe5 {[%emt 0:01:30]} 9. Bb5+ {[%emt 0:00:30]} Nc6 {[%emt 0:01:30]} 10. Nd2 {[%emt 0:06:30]} Nf6 {[%emt 0:02:30]} 11. b4 {[%emt 0:08:30]} Be7 {[%emt 0:02:30]} 12. O-O {[%emt 0:01:30]} O-O {[%emt 0:00:00]} 13. Bxc6 {[%emt 0:07:30]} bxc6 {[%emt 0:00:00]} 14. c4 {[%emt 0:11:30]} a5 {[%emt 0:02:30]} 15. a3 {[%emt 0:05:30]} Qd7 {[%emt 0:05:30]} 16. Bf4 {[%emt 0:01:30]} axb4 {[%emt 0:08:30]} 17. axb4 {[%emt 0:01:30]} Qb7 {[%emt 0:00:30]} 18. Rxa8 {[%emt 0:18:26]} Rxa8 {[%emt 0:00:30]} 19. Rb1 {[%emt 0:01:04]} dxc4 {[%emt 0:01:30]} 20. Bg5 {[%emt 0:08:52]} c3 {[%emt 0:08:30]} 21. Bxf6 {[%emt 0:01:25]} Bxf6 {[%emt 0:00:30]} 22. Ne4 {[%emt 0:01:57]} Qxb4 {[%emt 0:00:30]} 23. Nxf6+ {[%emt 0:02:41]} gxf6 {[%emt 0:00:30]} 24. Qg3+ {[%emt 0:02:10]} Kh8 {[%emt 0:00:00]} 25. Rc1 {[%emt 0:01:53]} Qb2 {[%emt 0:00:00]} 26. Qf4 {[%emt 0:00:19]} c2 {[%emt 0:00:30]} 0-1

[Event "29th CRO-chT Junior 2020"]
[Site "Cakovec"]
[Date "2020.07.14"]
[Round "1.8"]
[White "Zekic, Patrik"]
[Black "Cecic-Sule, Dino"]
[Result "0-1"]
[ECO "D35"]
[WhiteElo "1699"]
[BlackElo "1695"]
[Annotator "NA RC"]
[PlyCount "78"]
[EventDate "2020.07.14"]
[EventType "team-tourn"]
[EventCountry "CRO"]
[SourceTitle "playchess.com"]
[Source "ChessBase"]
[SourceQuality "1"]
[TimeControl "5400+30"]

1. d4 {[%emt 0:00:30]} d5 {[%emt 0:00:30]} 2. c4 {[%emt 0:00:30]} e6 {[%emt 0:00:30]} 3. Nc3 {[%emt 0:00:30]} Nf6 {[%emt 0:00:00]} 4. cxd5 {[%emt 0:00:00]} exd5 {[%emt 0:00:00]} 5. Bg5 {[%emt 0:00:00]} c6 {[%emt 0:00:30]} 6. e3 {[%emt 0:01:30]} Bf5 {[%emt 0:00:30]} 7. Qf3 {[%emt 0:00:30]} Bg6 {[%emt 0:10:30]} 8. Bxf6 {[%emt 0:02:30]} Qxf6 {[%emt 0:02:30]} 9. Qxf6 {[%emt 0:01:30]} gxf6 {[%emt 0:00:00]} 10. Nge2 {[%emt 0:11:30]} Bd6 {[%emt 0:03:00]} 11. a3 {[%emt 0:01:30]} a5 {[%emt 0:01:30]} 12. f3 {[%emt 0:19:30]} O-O {[%emt 0:21:30]} 13. Kf2 {[%emt 0:03:30]} Re8 {[%emt 0:11:30]} 14. g4 {[%emt 0:16:30]} Nd7 {[%emt 0:06:30]} 15. Ng3 {[%emt 0:02:30]} b5 {[%emt 0:03:30]} 16. f4 {[%emt 0:16:40]} b4 {[%emt 0:06:30]} 17. Nce2 {[%emt 0:18:48]} Bd3 {[%emt 0:00:30]} 18. Nf5 {[%emt 0:00:25]} Bxf5 {[%emt 0:09:30]} 19. gxf5 {[%emt 0:00:02]} bxa3 {[%emt 0:01:00]} 20. bxa3 {[%emt 0:00:07]} Rab8 {[%emt 0:00:10]} 21. Rg1+ {[%emt 0:01:04]} Kh8 {[%emt 0:00:20]} 22. Rg3 {[%emt 0:00:00]} Rb3 {[%emt 0:00:41]} 23. a4 {[%emt 0:00:04]} c5 {[%emt 0:00:19]} 24. Bg2 {[%emt 0:00:33]} Nb6 {[%emt 0:01:51]} 25. dxc5 {[%emt 0:01:36]} Bxc5 {[%emt 0:00:46]} 26. Nd4 {[%emt 0:00:08]} Rb2+ {[%emt 0:01:15]} 27. Ne2 {[%emt 0:00:27]} d4 {[%emt 0:06:24]} 28. Kf1 {[%emt 0:00:56]} dxe3 {[%emt 0:05:53]} 29. Rd1 {[%emt 0:00:20]} Rd2 {[%emt 0:01:07]} 30. Rc1 {[%emt 0:00:47]} Red8 {[%emt 0:00:52]} 31. Nc3 {[%emt 0:00:12]} e2+ {[%emt 0:01:28]} 32. Ke1 {[%emt 0:00:20]} Bb4 {[%emt 0:03:51]} 33. Bf3 {[%emt 0:01:26]} Nc4 {[%emt 0:00:54]} 34. Nd5 {[%emt 0:00:04]} R2xd5+ {[%emt 0:00:12]} 35. Kxe2 {[%emt 0:00:13]} Rd2+ {[%emt 0:00:10]} 36. Kf1 {[%emt 0:00:10]} Ne3+ {[%emt 0:00:22]} 37. Kg1 {[%emt 0:00:10]} Rc2 {[%emt 0:00:03]} 38. Rxc2 {[%emt 0:00:44]} Nxc2 {[%emt 0:00:30]} 39. Bh5 {[%emt 0:00:30]} Rg8 {[%emt 0:00:30]} 0-1

[Event "29th CRO-chT Junior 2020"]
[Site "Cakovec"]
[Date "2020.07.14"]
[Round "1.9"]
[White "Topalic, Fran"]
[Black "Karlovcec, David"]
[Result "1/2-1/2"]
[ECO "B92"]
[WhiteElo "1741"]
[BlackElo "1655"]
[Annotator "NA RC"]
[PlyCount "55"]
[EventDate "2020.07.14"]
[EventType "team-tourn"]
[EventCountry "CRO"]
[SourceTitle "playchess.com"]
[Source "ChessBase"]
[SourceQuality "1"]
[TimeControl "5400+30"]

1. e4 {[%emt 0:00:30]} c5 {[%emt 0:00:30]} 2. Nf3 {[%emt 0:00:00]} d6 {[%emt 0:00:00]} 3. d4 {[%emt 0:00:00]} cxd4 {[%emt 0:00:00]} 4. Nxd4 {[%emt 0:00:00]} Nf6 {[%emt 0:00:30]} 5. Nc3 {[%emt 0:00:00]} a6 {[%emt 0:01:30]} 6. Be2 {[%emt 0:00:30]} e5 {[%emt 0:00:30]} 7. Nb3 {[%emt 0:01:30]} Be7 {[%emt 0:01:30]} 8. O-O {[%emt 0:00:00]} O-O {[%emt 0:00:00]} 9. Be3 {[%emt 0:01:00]} Be6 {[%emt 0:02:00]} 10. f3 {[%emt 0:01:30]} d5 {[%emt 0:01:30]} 11. exd5 {[%emt 0:00:30]} Nxd5 {[%emt 0:00:30]} 12. Nxd5 {[%emt 0:00:30]} Bxd5 {[%emt 0:00:30]} 13. c4 {[%emt 0:00:30]} Be6 {[%emt 0:00:30]} 14. Qxd8 {[%emt 0:01:30]} Rxd8 {[%emt 0:00:00]} 15. Nc5 {[%emt 0:00:30]} Bxc5 {[%emt 0:05:00]} 16. Bxc5 {[%emt 0:00:00]} Rd2 {[%emt 0:00:30]} 17. Rfd1 {[%emt 0:00:00]} Rxd1+ {[%emt 0:00:30]} 18. Rxd1 {[%emt 0:00:30]} Nc6 {[%emt 0:00:30]} 19. b3 {[%emt 0:00:30]} f6 {[%emt 0:04:30]} 20. Rd6 {[%emt 0:04:30]} Kf7 {[%emt 0:02:30]} 21. Bd3 {[%emt 0:01:30]} f5 {[%emt 0:04:30]} 22. g4 {[%emt 0:00:30]} g6 {[%emt 0:03:30]} 23. h3 {[%emt 0:01:30]} a5 {[%emt 0:11:30]} 24. Be2 {[%emt 0:13:30]} Rd8 {[%emt 0:08:30]} 25. Kf2 {[%emt 0:04:30]} Rxd6 {[%emt 0:03:30]} 26. Bxd6 {[%emt 0:00:30]} Bd7 {[%emt 0:02:30]} 27. Bc7 {[%emt 0:01:30]} Ke7 {[%emt 0:07:30]} 28. Bb6 {[%emt 0:05:30]} 1/2-1/2

[Event "29th CRO-chT Junior 2020"]
[Site "Cakovec"]
[Date "2020.07.14"]
[Round "1.10"]
[White "Vidovic, Dominik"]
[Black "Matota, Dominik"]
[Result "0-1"]
[ECO "E93"]
[WhiteElo "1526"]
[BlackElo "1807"]
[Annotator "NA RC"]
[PlyCount "56"]
[EventDate "2020.07.14"]
[EventType "team-tourn"]
[EventCountry "CRO"]
[SourceTitle "playchess.com"]
[Source "ChessBase"]
[SourceQuality "1"]
[TimeControl "5400+30"]

1. d4 {[%emt 0:00:30]} Nf6 {[%emt 0:00:30]} 2. c4 {[%emt 0:00:00]} g6 {[%emt 0:00:30]} 3. Nc3 {[%emt 0:01:00]} Bg7 {[%emt 0:00:00]} 4. e4 {[%emt 0:00:30]} d6 {[%emt 0:00:00]} 5. Nf3 {[%emt 0:00:30]} O-O {[%emt 0:00:30]} 6. Be3 {[%emt 0:01:30]} Nbd7 {[%emt 0:02:30]} 7. Be2 {[%emt 0:01:30]} e5 {[%emt 0:00:00]} 8. d5 {[%emt 0:00:30]} Nh5 {[%emt 0:02:00]} 9. g4 {[%emt 0:04:30]} Nf4 {[%emt 0:00:30]} 10. Bxf4 {[%emt 0:04:30]} exf4 {[%emt 0:00:30]} 11. Nd4 {[%emt 0:02:30]} a6 {[%emt 0:01:30]} 12. h4 {[%emt 0:04:30]} Ne5 {[%emt 0:00:30]} 13. f3 {[%emt 0:04:30]} Bf6 {[%emt 0:04:30]} 14. g5 {[%emt 0:02:30]} Bg7 {[%emt 0:00:00]} 15. Qd2 {[%emt 0:02:30]} Bd7 {[%emt 0:02:00]} 16. Qxf4 {[%emt 0:04:30]} Nxc4 {[%emt 0:00:30]} 17. Bxc4 {[%emt 0:02:30]} Bxd4 {[%emt 0:00:00]} 18. Qd2 {[%emt 0:02:30]} Bh8 {[%emt 0:15:00]} 19. h5 {[%emt 0:02:30]} b5 {[%emt 0:00:00]} 20. hxg6 {[%emt 0:07:30]} fxg6 {[%emt 0:01:00]} 21. Qh2 {[%emt 0:12:30]} Rf7 {[%emt 0:00:30]} 22. Bb3 {[%emt 0:04:30]} Qxg5 {[%emt 0:01:30]} 23. Ke2 {[%emt 0:03:30]} b4 {[%emt 0:00:30]} 24. Na4 {[%emt 0:00:30]} Bb5+ {[%emt 0:00:30]} 25. Ke1 {[%emt 0:05:30]} Qe3+ {[%emt 0:01:30]} 26. Kd1 {[%emt 0:00:30]} Qxf3+ {[%emt 0:00:30]} 27. Kc1 {[%emt 0:02:30]} Be5 {[%emt 0:02:30]} 28. Qh4 {[%emt 0:03:30]} Bf4+ {[%emt 0:02:30]} 0-1

[Event "29th CRO-chT Junior 2020"]
[Site "Cakovec"]
[Date "2020.07.14"]
[Round "1.12"]
[White "Kristofic, Dino"]
[Black "Dankos, Mislav"]
[Result "0-1"]
[ECO "B72"]
[WhiteElo "1271"]
[BlackElo "1274"]
[Annotator "NA RC"]
[PlyCount "56"]
[EventDate "2020.07.14"]
[EventType "team-tourn"]
[EventCountry "CRO"]
[SourceTitle "playchess.com"]
[Source "ChessBase"]
[SourceQuality "1"]
[TimeControl "5400+30"]

1. e4 {[%emt 0:00:30]} c5 {[%emt 0:00:30]} 2. Nf3 {[%emt 0:00:00]} Nc6 {[%emt 0:00:00]} 3. d4 {[%emt 0:01:00]} cxd4 {[%emt 0:01:00]} 4. Nxd4 {[%emt 0:00:30]} g6 {[%emt 0:00:30]} 5. Bc4 {[%emt 0:02:30]} Bg7 {[%emt 0:00:30]} 6. Be3 {[%emt 0:01:30]} Nf6 {[%emt 0:03:30]} 7. Nc3 {[%emt 0:00:30]} d6 {[%emt 0:00:30]} 8. Nxc6 {[%emt 0:01:30]} bxc6 {[%emt 0:01:30]} 9. Qd2 {[%emt 0:00:30]} O-O {[%emt 0:03:30]} 10. Bh6 {[%emt 0:03:30]} a5 {[%emt 0:03:30]} 11. Bxg7 {[%emt 0:01:30]} Kxg7 {[%emt 0:00:30]} 12. O-O {[%emt 0:02:30]} Rb8 {[%emt 0:04:30]} 13. b3 {[%emt 0:01:30]} Bb7 {[%emt 0:01:30]} 14. Rad1 {[%emt 0:02:30]} c5 {[%emt 0:01:30]} 15. Rfe1 {[%emt 0:04:30]} Bc6 {[%emt 0:00:30]} 16. e5 {[%emt 0:02:30]} Ne8 {[%emt 0:07:30]} 17. Ne4 {[%emt 0:03:30]} Bxe4 {[%emt 0:01:30]} 18. Rxe4 {[%emt 0:01:30]} Rb7 {[%emt 0:08:30]} 19. Qc3 {[%emt 0:03:30]} Kg8 {[%emt 0:01:30]} 20. g3 {[%emt 0:06:30]} Qb6 {[%emt 0:01:30]} 21. a4 {[%emt 0:05:30]} e6 {[%emt 0:01:30]} 22. Bb5 {[%emt 0:02:30]} d5 {[%emt 0:00:30]} 23. Rf4 {[%emt 0:01:30]} Ng7 {[%emt 0:02:30]} 24. Qd3 {[%emt 0:02:30]} Nf5 {[%emt 0:00:30]} 25. c4 {[%emt 0:01:30]} Rd8 {[%emt 0:02:30]} 26. cxd5 {[%emt 0:04:30]} Rxd5 {[%emt 0:00:00]} 27. Qe2 {[%emt 0:00:30]} Nd4 {[%emt 0:01:00]} 28. Qd3 {[%emt 0:03:30]} Nxb5 {[%emt 0:00:30]} 0-1

[Event "29th CRO-chT Junior 2020"]
[Site "Cakovec"]
[Date "2020.07.14"]
[Round "1.13"]
[White "Damjanovic, Stjepan"]
[Black "Haidinger, Erik"]
[Result "1-0"]
[ECO "B23"]
[WhiteElo "1867"]
[BlackElo "1767"]
[Annotator "NA RC"]
[PlyCount "95"]
[EventDate "2020.07.14"]
[EventType "team-tourn"]
[EventCountry "CRO"]
[SourceTitle "playchess.com"]
[Source "ChessBase"]
[SourceQuality "1"]
[TimeControl "5400+30"]

1. e4 {[%emt 0:00:30]} c5 {[%emt 0:00:30]} 2. Nc3 {[%emt 0:00:00]} d6 {[%emt 0:00:00]} 3. f4 {[%emt 0:00:00]} g6 {[%emt 0:00:00]} 4. Nf3 {[%emt 0:00:00]} Bg7 {[%emt 0:00:30]} 5. Bb5+ {[%emt 0:00:00]} Bd7 {[%emt 0:00:30]} 6. Bc4 {[%emt 0:00:30]} e6 {[%emt 0:00:30]} 7. O-O {[%emt 0:01:30]} Ne7 {[%emt 0:00:00]} 8. d3 {[%emt 0:00:30]} O-O {[%emt 0:00:00]} 9. Be3 {[%emt 0:00:00]} Nbc6 {[%emt 0:00:30]} 10. Rb1 {[%emt 0:01:00]} Nd4 {[%emt 0:03:30]} 11. Ne2 {[%emt 0:01:30]} d5 {[%emt 0:04:30]} 12. Bb3 {[%emt 0:02:30]} dxe4 {[%emt 0:16:30]} 13. Nfxd4 {[%emt 0:05:30]} cxd4 {[%emt 0:06:30]} 14. Bxd4 {[%emt 0:02:30]} Bb5 {[%emt 0:07:30]} 15. Bxg7 {[%emt 0:03:30]} Kxg7 {[%emt 0:09:30]} 16. c4 {[%emt 0:02:30]} exd3 {[%emt 0:01:30]} 17. cxb5 {[%emt 0:01:30]} dxe2 {[%emt 0:01:30]} 18. Qxe2 {[%emt 0:00:00]} Qb6+ {[%emt 0:00:30]} 19. Kh1 {[%emt 0:00:00]} Nf5 {[%emt 0:01:30]} 20. Rfd1 {[%emt 0:01:30]} Rad8 {[%emt 0:02:30]} 21. Qe5+ {[%emt 0:01:30]} Kg8 {[%emt 0:00:30]} 22. Rbc1 {[%emt 0:13:30]} Rxd1+ {[%emt 0:04:30]} 23. Bxd1 {[%emt 0:03:30]} Qf2 {[%emt 0:01:30]} 24. Bf3 {[%emt 0:02:30]} b6 {[%emt 0:07:30]} 25. a4 {[%emt 0:06:30]} Nd4 {[%emt 0:02:30]} 26. Bc6 {[%emt 0:01:30]} Ne2 {[%emt 0:01:30]} 27. Rd1 {[%emt 0:00:30]} Nxf4 {[%emt 0:00:30]} 28. h3 {[%emt 0:01:30]} Nd3 {[%emt 0:04:30]} 29. Qc7 {[%emt 0:07:30]} Nxb2 {[%emt 0:04:44]} 30. Ra1 {[%emt 0:00:30]} Qd4 {[%emt 0:02:46]} 31. Qxa7 {[%emt 0:03:30]} Nc4 {[%emt 0:01:42]} 32. Re1 {[%emt 0:03:30]} e5 {[%emt 0:04:04]} 33. Qe7 {[%emt 0:01:30]} Qc3 {[%emt 0:02:34]} 34. Re4 {[%emt 0:02:30]} Nb2 {[%emt 0:04:32]} 35. Rxe5 {[%emt 0:05:30]} Nxa4 {[%emt 0:00:45]} 36. Re4 {[%emt 0:01:30]} Nc5 {[%emt 0:00:48]} 37. Rh4 {[%emt 0:01:30]} Ne6 {[%emt 0:00:18]} 38. Re4 {[%emt 0:04:30]} Ng7 {[%emt 0:00:44]} 39. Re3 {[%emt 0:02:53]} Qa5 {[%emt 0:01:08]} 40. Bd7 {[%emt 0:05:37]} f5 {[%emt 0:01:46]} 41. Bc6 {[%emt 0:00:17]} Qa1+ {[%emt 0:00:48]} 42. Re1 {[%emt 0:00:46]} Qf6 {[%emt 0:00:00]} 43. Qc7 {[%emt 0:01:02]} Qd8 {[%emt 0:00:34]} 44. Qb7 {[%emt 0:00:55]} Qb8 {[%emt 0:00:00]} 45. Qe7 {[%emt 0:03:30]} Rd8 {[%emt 0:01:10]} 46. Ra1 {[%emt 0:02:50]} Rd6 {[%emt 0:01:56]} 47. Kg1 {[%emt 0:01:22]} Rxc6 {[%emt 0:02:01]} 48. bxc6 {[%emt 0:00:12]} 1-0

[Event "29th CRO-chT Junior 2020"]
[Site "Cakovec"]
[Date "2020.07.14"]
[Round "1.14"]
[White "Sundac, Ivano"]
[Black "Juric, Ester"]
[Result "1-0"]
[ECO "D02"]
[WhiteElo "1408"]
[BlackElo "1663"]
[Annotator "NA RC"]
[PlyCount "61"]
[EventDate "2020.07.14"]
[EventType "team-tourn"]
[EventCountry "CRO"]
[SourceTitle "playchess.com"]
[Source "ChessBase"]
[SourceQuality "1"]
[TimeControl "5400+30"]

1. d4 {[%emt 0:00:30]} d5 {[%emt 0:00:30]} 2. Bf4 {[%emt 0:00:00]} Nf6 {[%emt 0:00:30]} 3. e3 {[%emt 0:00:00]} e6 {[%emt 0:01:30]} 4. Nf3 {[%emt 0:00:30]} Bd6 {[%emt 0:02:30]} 5. Ne5 {[%emt 0:00:00]} Nbd7 {[%emt 0:08:30]} 6. Nd2 {[%emt 0:00:00]} O-O {[%emt 0:12:30]} 7. Bd3 {[%emt 0:00:30]} Qe7 {[%emt 0:10:30]} 8. Qf3 {[%emt 0:01:30]} c5 {[%emt 0:16:30]} 9. c3 {[%emt 0:00:30]} h6 {[%emt 0:05:30]} 10. h4 {[%emt 0:01:30]} c4 {[%emt 0:10:30]} 11. Bc2 {[%emt 0:00:30]} h5 {[%emt 0:03:30]} 12. Qg3 {[%emt 0:01:30]} Bxe5 {[%emt 0:05:34]} 13. dxe5 {[%emt 0:00:30]} Ne8 {[%emt 0:00:44]} 14. Qf3 {[%emt 0:00:30]} g6 {[%emt 0:01:41]} 15. g4 {[%emt 0:00:30]} Ng7 {[%emt 0:00:37]} 16. gxh5 {[%emt 0:01:30]} Nxh5 {[%emt 0:00:30]} 17. Rg1 {[%emt 0:02:30]} Kh8 {[%emt 0:06:21]} 18. Bg5 {[%emt 0:02:30]} Qe8 {[%emt 0:01:32]} 19. Bf6+ {[%emt 0:00:30]} Ndxf6 {[%emt 0:01:52]} 20. exf6 {[%emt 0:00:30]} Qd8 {[%emt 0:01:30]} 21. Rg5 {[%emt 0:01:30]} Nxf6 {[%emt 0:02:24]} 22. h5 {[%emt 0:05:30]} Nh7 {[%emt 0:01:58]} 23. Rg2 {[%emt 0:00:30]} Qf6 {[%emt 0:03:19]} 24. hxg6 {[%emt 0:01:30]} fxg6 {[%emt 0:00:29]} 25. Qg3 {[%emt 0:01:30]} e5 {[%emt 0:00:45]} 26. O-O-O {[%emt 0:01:30]} Be6 {[%emt 0:00:34]} 27. Rh1 {[%emt 0:00:00]} Bg8 {[%emt 0:00:28]} 28. Bxg6 {[%emt 0:00:00]} Rac8 {[%emt 0:00:30]} 29. Bf5 {[%emt 0:02:30]} Rc7 {[%emt 0:00:28]} 30. Rhg1 {[%emt 0:00:30]} Qxf5 {[%emt 0:00:36]} 31. Qxg8+ {[%emt 1:13:49]} 1-0

[Event "29th CRO-chT Junior 2020"]
[Site "Cakovec"]
[Date "2020.07.14"]
[Round "1.15"]
[White "Mandaric, Fran"]
[Black "Tomljanovic, Ivano"]
[Result "1-0"]
[ECO "C50"]
[WhiteElo "1671"]
[BlackElo "1393"]
[Annotator "NA RC"]
[PlyCount "45"]
[EventDate "2020.07.14"]
[EventType "team-tourn"]
[EventCountry "CRO"]
[SourceTitle "playchess.com"]
[Source "ChessBase"]
[SourceQuality "1"]
[TimeControl "5400+30"]

1. e4 {[%emt 0:00:30]} e5 {[%emt 0:00:30]} 2. Nf3 {[%emt 0:00:00]} Nc6 {[%emt 0:00:00]} 3. Bc4 {[%emt 0:00:00]} Bc5 {[%emt 0:00:00]} 4. O-O {[%emt 0:00:00]} Nf6 {[%emt 0:00:30]} 5. d4 {[%emt 0:00:00]} Bxd4 {[%emt 0:01:30]} 6. Nxd4 {[%emt 0:00:30]} Nxd4 {[%emt 0:00:00]} 7. f4 {[%emt 0:00:00]} Nc6 {[%emt 0:03:00]} 8. Bxf7+ {[%emt 0:09:00]} Kxf7 {[%emt 0:03:30]} 9. fxe5 {[%emt 0:00:00]} Nxe5 {[%emt 0:00:30]} 10. Qh5+ {[%emt 0:04:00]} Ng6 {[%emt 0:03:30]} 11. e5 {[%emt 0:00:00]} h6 {[%emt 0:02:30]} 12. Nc3 {[%emt 0:05:00]} d5 {[%emt 0:03:30]} 13. exf6 {[%emt 0:00:30]} gxf6 {[%emt 0:01:30]} 14. Nxd5 {[%emt 0:00:30]} f5 {[%emt 0:00:30]} 15. Ne3 {[%emt 0:09:30]} Qh4 {[%emt 0:06:30]} 16. Qf3 {[%emt 0:15:30]} Ne7 {[%emt 0:03:30]} 17. Ng4 {[%emt 0:07:30]} Be6 {[%emt 0:07:30]} 18. g3 {[%emt 0:00:30]} Bd5 {[%emt 0:02:30]} 19. Ne5+ {[%emt 0:06:30]} Kf6 {[%emt 0:03:30]} 20. gxh4 {[%emt 0:01:30]} Bxf3 {[%emt 0:00:30]} 21. Nxf3 {[%emt 0:00:30]} Rad8 {[%emt 0:01:30]} 22. Bf4 {[%emt 0:00:30]} Nd5 {[%emt 0:00:30]} 23. Be5+ {[%emt 0:00:30]} 1-0

[Event "29th CRO-chT Junior 2020"]
[Site "Cakovec"]
[Date "2020.07.14"]
[Round "2.2"]
[White "Karlusic, Luka"]
[Black "Radenic, Filip"]
[Result "0-1"]
[ECO "E46"]
[WhiteElo "2169"]
[BlackElo "2134"]
[Annotator "RC"]
[PlyCount "108"]
[EventDate "2020.07.14"]
[EventType "team-tourn"]
[EventCountry "CRO"]
[SourceTitle "playchess.com"]
[Source "ChessBase"]
[SourceQuality "1"]
[TimeControl "5400+30"]

1. d4 {[%emt 0:00:30]} Nf6 {[%emt 0:00:30]} 2. c4 {[%emt 0:00:00]} e6 {[%emt 0:00:00]} 3. Nc3 {[%emt 0:00:00]} Bb4 {[%emt 0:00:00]} 4. e3 {[%emt 0:00:30]} O-O {[%emt 0:00:30]} 5. Nge2 {[%emt 0:00:00]} Re8 {[%emt 0:00:30]} 6. a3 {[%emt 0:00:00]} Bf8 {[%emt 0:00:30]} 7. Ng3 {[%emt 0:02:30]} d5 {[%emt 0:01:30]} 8. cxd5 {[%emt 0:11:30]} exd5 {[%emt 0:00:00]} 9. Bd3 {[%emt 0:00:30]} a5 {[%emt 0:03:00]} 10. O-O {[%emt 0:03:30]} Na6 {[%emt 0:05:30]} 11. Qc2 {[%emt 0:12:30]} c6 {[%emt 0:01:30]} 12. Bd2 {[%emt 0:02:30]} Nc7 {[%emt 0:01:30]} 13. Rab1 {[%emt 0:03:30]} Ne6 {[%emt 0:02:30]} 14. Rfc1 {[%emt 0:04:30]} h5 {[%emt 0:03:30]} 15. h3 {[%emt 0:05:30]} h4 {[%emt 0:03:30]} 16. Nf1 {[%emt 0:07:30]} Bd6 {[%emt 0:05:30]} 17. Ne2 {[%emt 0:07:30]} Ng5 {[%emt 0:08:30]} 18. f4 {[%emt 0:07:30]} Nge4 {[%emt 0:01:30]} 19. Be1 {[%emt 0:00:30]} Nh5 {[%emt 0:03:30]} 20. Bxe4 {[%emt 0:09:30]} Rxe4 {[%emt 0:01:30]} 21. Nc3 {[%emt 0:00:00]} Re8 {[%emt 0:02:30]} 22. Qf2 {[%emt 0:04:10]} Be7 {[%emt 0:02:30]} 23. b4 {[%emt 0:05:31]} Bf5 {[%emt 0:04:30]} 24. Rb3 {[%emt 0:01:00]} axb4 {[%emt 0:07:30]} 25. axb4 {[%emt 0:00:01]} b5 {[%emt 0:05:30]} 26. Ne2 {[%emt 0:03:05]} Qb6 {[%emt 0:04:30]} 27. Kh2 {[%emt 0:04:39]} Ra2 {[%emt 0:01:30]} 28. Qf3 {[%emt 0:00:24]} g6 {[%emt 0:01:30]} 29. Nc3 {[%emt 0:00:28]} Ra6 {[%emt 0:01:30]} 30. Rb2 {[%emt 0:01:30]} Rea8 {[%emt 0:00:30]} 31. Qe2 {[%emt 0:02:08]} Qb8 {[%emt 0:02:30]} 32. Kg1 {[%emt 0:00:48]} Qf8 {[%emt 0:01:30]} 33. Nd1 {[%emt 0:01:57]} Qe8 {[%emt 0:02:30]} 34. Nh2 {[%emt 0:00:15]} Bf6 {[%emt 0:07:45]} 35. Nf3 {[%emt 0:00:52]} Ra1 {[%emt 0:00:33]} 36. Rxa1 {[%emt 0:00:23]} Rxa1 {[%emt 0:00:01]} 37. Ra2 {[%emt 0:00:42]} Nxf4 {[%emt 0:00:27]} 38. exf4 {[%emt 0:00:37]} Qxe2 {[%emt 0:00:03]} 39. Rxe2 {[%emt 0:00:00]} Rxd1 {[%emt 0:00:13]} 40. Re8+ {[%emt 0:00:57]} Kg7 {[%emt 0:00:04]} 41. Kf1 {[%emt 0:00:25]} Be4 {[%emt 0:01:19]} 42. Ne5 {[%emt 0:00:34]} Rxd4 {[%emt 0:00:59]} 43. Nxc6 {[%emt 0:00:17]} Bd3+ {[%emt 0:00:49]} 44. Kf2 {[%emt 0:00:43]} Rxf4+ {[%emt 0:01:54]} 45. Ke3 {[%emt 0:00:03]} Re4+ {[%emt 0:00:13]} 46. Rxe4 {[%emt 0:00:02]} dxe4 {[%emt 0:01:21]} 47. g3 {[%emt 0:01:13]} hxg3 {[%emt 0:01:11]} 48. Bxg3 {[%emt 0:00:02]} Bc3 {[%emt 0:00:52]} 49. Bd6 {[%emt 0:01:44]} f5 {[%emt 0:00:30]} 50. h4 {[%emt 0:00:30]} Kf6 {[%emt 0:00:30]} 51. Bf8 {[%emt 0:00:30]} Ke6 {[%emt 0:00:30]} 52. Nd4+ {[%emt 0:00:30]} Kd5 {[%emt 0:00:30]} 53. Nb3 {[%emt 0:00:30]} Be1 {[%emt 0:00:30]} 54. h5 {[%emt 0:00:30]} g5 {[%emt 0:00:30]} 0-1